[Event "Eurasia Open Cup 2018"]
[Site "Jekaterienburg"]
[Date "2018.08.08"]
[Round "7"]
[White "Timofeev, Artyom"]
[Black "Dilmukhametov, Artur"]
[Result "1-0"]
[ECO "D44"]
[WhiteElo "2590"]
[BlackElo "2354"]
[Annotator "RC"]
[PlyCount "91"]
[EventDate "2018.08.01"]
[EventType "swiss"]
[EventCountry "RUS"]
[SourceTitle "playchess.com"]
[Source "ChessBase"]
[SourceQuality "1"]
[TimeControl "5400+30"]

1. d4 {[%emt 0:00:00]} d5 {[%emt 0:00:00]} 2. c4 {[%emt 0:00:00]} c6 {[%emt 0:00:00]} 3. Nf3 {[%emt 0:00:00]} Nf6 {[%emt 0:00:10]} 4. Nc3 {[%emt 0:00:00]} dxc4 {[%emt 0:01:19]} 5. a4 {[%emt 0:00:16]} e6 {[%emt 0:00:00]} 6. e4 {[%emt 0:06:10]} Bb4 {[%emt 0:01:00]} 7. Bg5 {[%emt 0:00:58]} Qa5 {[%emt 0:01:55]} 8. Bd2 {[%emt 0:01:09]} O-O {[%emt 0:13:38]} 9. Bxc4 {[%emt 0:02:29]} c5 {[%emt 0:01:28]} 10. dxc5 {[%emt 0:03:20]} Qxc5 {[%emt 0:00:07]} 11. Qe2 {[%emt 0:00:40]} Nc6 {[%emt 0:08:30]} 12. O-O {[%emt 0:01:35]} e5 {[%emt 0:10:05]} 13. Be3 {[%emt 0:03:38]} Nd4 {[%emt 0:10:10]} 14. Bxd4 {[%emt 0:01:18]} exd4 {[%emt 0:02:20]} 15. Nd5 {[%emt 0:00:13]} Nxd5 {[%emt 0:01:23]} 16. Bxd5 {[%emt 0:00:08]} Be6 {[%emt 0:15:57]} 17. Bxe6 {[%emt 0:05:47]} fxe6 {[%emt 0:09:48]} 18. Rac1 {[%emt 0:00:08]} Qd6 {[%emt 0:00:00]} 19. Qc4 {[%emt 0:09:12]} Rad8 {[%emt 0:00:00]} 20. Rfd1 {[%emt 0:00:16]} Rxf3 {[%emt 0:01:24]} 21. gxf3 {[%emt 0:00:19]} d3 {[%emt 0:03:37]} 22. e5 {[%emt 0:02:34]} Qe7 {[%emt 0:00:00]} 23. Qe4 {[%emt 0:06:11]} d2 {[%emt 0:01:11]} 24. Rc4 {[%emt 0:00:08]} a5 {[%emt 0:00:00]} 25. h4 {[%emt 0:04:43]} h6 {[%emt 0:02:28]} 26. Rd4 {[%emt 0:06:08]} Rxd4 {[%emt 0:00:40]} 27. Qxd4 {[%emt 0:00:06]} Qe8 {[%emt 0:00:00]} 28. Qc4 {[%emt 0:03:32]} Qxa4 {[%emt 0:02:37]} 29. Qxe6+ {[%emt 0:02:15]} Kh7 {[%emt 0:00:49]} 30. b3 {[%emt 0:00:33]} Qb5 {[%emt 0:03:06]} 31. Qf5+ {[%emt 0:02:06]} Kg8 {[%emt 0:00:02]} 32. Qe4 {[%emt 0:01:00]} Kf7 {[%emt 0:02:00]} 33. f4 {[%emt 0:02:15]} Bc3 {[%emt 0:04:01]} 34. Qf3 {[%emt 0:00:39]} Qd7 {[%emt 0:03:06]} 35. Kf1 {[%emt 0:01:02]} Qb5+ {[%emt 0:00:16]} 36. Kg2 {[%emt 0:00:19]} Qd7 {[%emt 0:01:47]} 37. Kg3 {[%emt 0:04:38]} Bb4 {[%emt 0:01:35]} 38. Qe4 {[%emt 0:00:13]} Ke7 {[%emt 0:00:45]} 39. f5 {[%emt 0:05:18]} Qc7 {[%emt 0:00:22]} 40. f6+ {[%emt 0:06:38]} gxf6 {[%emt 0:00:16]} 41. Qh7+ {[%emt 0:00:17]} Kd8 {[%emt 0:00:32]} 42. Qxc7+ {[%emt 0:00:08]} Kxc7 {[%emt 0:00:04]} 43. exf6 {[%emt 0:00:05]} Kd6 {[%emt 0:00:04]} 44. Kf3 {[%emt 0:00:08]} Ke6 {[%emt 0:01:15]} 45. Ke2 {[%emt 0:00:06]} Kxf6 {[%emt 0:00:53]} 46. Rg1 {[%emt 0:00:08]} 1-0

[Event "Eurasia Open Cup 2018"]
[Site "Jekaterienburg"]
[Date "2018.08.08"]
[Round "7"]
[White "Rozum, Ivan"]
[Black "Tsydypov, Zhamsaran"]
[Result "1-0"]
[ECO "A86"]
[WhiteElo "2581"]
[BlackElo "2514"]
[Annotator "ChessBase"]
[PlyCount "93"]
[EventDate "2018.08.01"]
[EventType "swiss"]
[EventCountry "RUS"]
[SourceTitle "playchess.com"]
[Source "ChessBase"]
[SourceQuality "1"]
[TimeControl "5400+30"]

1. c4 {[%emt 0:03:25]} f5 {[%emt 0:01:43]} 2. d4 {[%emt 0:02:46]} Nf6 {[%emt 0:00:34]} 3. g3 {[%emt 0:01:01]} g6 {[%emt 0:00:36]} 4. Bg2 {[%emt 0:00:04]} Bg7 {[%emt 0:00:06]} 5. Nh3 {[%emt 0:04:07]} e6 {[%emt 0:02:04]} 6. Nf4 {[%emt 0:04:56]} O-O {[%emt 0:03:27]} 7. Nc3 {[%emt 0:01:49]} d6 {[%emt 0:00:19]} 8. Qb3 {[%emt 0:05:40]} c6 {[%emt 0:06:13]} 9. d5 {[%emt 0:01:38]} Na6 {[%emt 0:07:55]} 10. dxe6 {[%emt 0:11:18]} Nc5 {[%emt 0:01:45]} 11. Qc2 {[%emt 0:00:02]} g5 {[%emt 0:03:04]} 12. Nd3 {[%emt 0:02:11]} Nxe6 {[%emt 0:00:06]} 13. h4 {[%emt 0:03:36]} h6 {[%emt 0:02:05]} 14. hxg5 {[%emt 0:00:06]} hxg5 {[%emt 0:00:31]} 15. Kf1 {[%emt 0:13:33]} Bd7 {[%emt 0:10:08]} 16. Ne1 {[%emt 0:02:57]} Ng4 {[%emt 0:02:48]} 17. Nf3 {[%emt 0:03:16]} Qe7 {[%emt 0:06:21]} 18. Qd2 {[%emt 0:02:38]} Bf6 {[%emt 0:04:24]} 19. Bh3 {[%emt 0:03:22]} Rae8 {[%emt 0:04:58]} 20. e4 {[%emt 0:05:06]} Nxf2 {[%emt 0:10:03]} 21. Qxf2 {[%emt 0:06:31]} fxe4 {[%emt 0:10:36]} 22. Nxe4 {[%emt 0:02:04]} Nd4 {[%emt 0:01:20]} 23. Bxd7 {[%emt 0:04:51]} Qxe4 {[%emt 0:03:20]} 24. Bxe8 {[%emt 0:01:15]} Rxe8 {[%emt 0:03:02]} 25. Qe3 {[%emt 0:05:49]} Qg6 {[%emt 0:04:16]} 26. Rh6 {[%emt 0:01:00]} Qf7 {[%emt 0:01:12]} 27. Qf2 {[%emt 0:05:49]} Qxc4+ {[%emt 0:04:24]} 28. Kg1 {[%emt 0:00:43]} Re2 {[%emt 0:00:06]} 29. Qf1 {[%emt 0:01:38]} Nf5 {[%emt 0:01:31]} 30. Rg6+ {[%emt 0:00:46]} Kh7 {[%emt 0:00:12]} 31. Rxg5 {[%emt 0:00:42]} Bxg5 {[%emt 0:01:12]} 32. Nxg5+ {[%emt 0:00:02]} Kg6 {[%emt 0:00:17]} 33. Bf4 {[%emt 0:00:27]} Qd4+ {[%emt 0:03:39]} 34. Kh1 {[%emt 0:00:02]} Qh8+ {[%emt 0:00:15]} 35. Qh3 {[%emt 0:01:15]} Qxh3+ {[%emt 0:00:08]} 36. Nxh3 {[%emt 0:00:00]} Rxb2 {[%emt 0:00:07]} 37. g4 {[%emt 0:00:49]} Nh6 {[%emt 0:00:05]} 38. Bxh6 {[%emt 0:00:26]} Kxh6 {[%emt 0:00:02]} 39. Re1 {[%emt 0:00:33]} Rxa2 {[%emt 0:01:41]} 40. Re6+ {[%emt 0:00:02]} Kg7 {[%emt 0:00:05]} 41. Rxd6 {[%emt 0:00:16]} Rb2 {[%emt 0:00:09]} 42. g5 {[%emt 0:00:55]} Rb4 {[%emt 0:01:08]} 43. Kg2 {[%emt 0:00:14]} a5 {[%emt 0:00:12]} 44. Kf3 {[%emt 0:00:08]} a4 {[%emt 0:00:12]} 45. Nf4 {[%emt 0:00:07]} a3 {[%emt 0:01:16]} 46. Nh5+ {[%emt 0:01:19]} Kf8 {[%emt 0:00:11]} 47. g6 {[%emt 0:00:00]} 1-0

[Event "Eurasia Open Cup 2018"]
[Site "Jekaterienburg"]
[Date "2018.08.08"]
[Round "7"]
[White "Kabanov, Nikolai"]
[Black "Grachev, Alexey"]
[Result "1-0"]
[ECO "D02"]
[WhiteElo "2475"]
[BlackElo "2277"]
[Annotator "ChessBase"]
[PlyCount "109"]
[EventDate "2018.08.01"]
[EventType "swiss"]
[EventCountry "RUS"]
[SourceTitle "playchess.com"]
[Source "ChessBase"]
[SourceQuality "1"]
[TimeControl "5400+30"]

1. Nf3 {[%emt 0:00:00]} d5 {[%emt 0:00:11]} 2. d4 {[%emt 0:00:06]} Nf6 {[%emt 0:00:18]} 3. Bf4 {[%emt 0:00:14]} c5 {[%emt 0:00:30]} 4. e3 {[%emt 0:00:10]} Nc6 {[%emt 0:00:55]} 5. c3 {[%emt 0:00:42]} e6 {[%emt 0:11:13]} 6. Nbd2 {[%emt 0:00:04]} cxd4 {[%emt 0:00:01]} 7. exd4 {[%emt 0:00:00]} Nh5 {[%emt 0:00:05]} 8. Be3 {[%emt 0:01:57]} Bd6 {[%emt 0:01:04]} 9. Ne5 {[%emt 0:06:26]} Nf6 {[%emt 0:03:10]} 10. f4 {[%emt 0:00:00]} Ne7 {[%emt 0:06:01]} 11. Bd3 {[%emt 0:02:30]} Nf5 {[%emt 0:01:28]} 12. Bf2 {[%emt 0:00:09]} h5 {[%emt 0:00:59]} 13. Qe2 {[%emt 0:02:50]} g6 {[%emt 0:05:14]} 14. Ndf3 {[%emt 0:02:38]} Ng4 {[%emt 0:08:09]} 15. O-O-O {[%emt 0:00:31]} Nxf2 {[%emt 0:04:33]} 16. Qxf2 {[%emt 0:00:22]} Bd7 {[%emt 0:00:13]} 17. Kb1 {[%emt 0:02:56]} b5 {[%emt 0:02:43]} 18. g3 {[%emt 0:00:50]} b4 {[%emt 0:11:37]} 19. c4 {[%emt 0:06:07]} dxc4 {[%emt 0:00:06]} 20. Bxc4 {[%emt 0:00:13]} Ne7 {[%emt 0:03:45]} 21. Ng5 {[%emt 0:04:54]} Bxe5 {[%emt 0:05:08]} 22. dxe5 {[%emt 0:00:12]} Qc7 {[%emt 0:00:50]} 23. Ne4 {[%emt 0:04:22]} Kf8 {[%emt 0:06:10]} 24. Nd6 {[%emt 0:03:13]} Bc6 {[%emt 0:02:03]} 25. Rhe1 {[%emt 0:00:39]} Kg7 {[%emt 0:01:25]} 26. Qd2 {[%emt 0:01:50]} Rab8 {[%emt 0:03:27]} 27. f5 {[%emt 0:06:30]} Nxf5 {[%emt 0:01:00]} 28. Qg5 {[%emt 0:00:52]} Rhf8 {[%emt 0:02:15]} 29. Bd3 {[%emt 0:13:33]} Nxd6 {[%emt 0:02:21]} 30. Qf6+ {[%emt 0:00:29]} Kg8 {[%emt 0:01:54]} 31. exd6 {[%emt 0:00:26]} Qd7 {[%emt 0:00:38]} 32. Bc4 {[%emt 0:01:06]} Rfe8 {[%emt 0:04:17]} 33. Re5 {[%emt 0:01:24]} Qd8 {[%emt 0:00:50]} 34. Qf4 {[%emt 0:00:13]} Rb6 {[%emt 0:02:52]} 35. h4 {[%emt 0:04:00]} Kg7 {[%emt 0:02:56]} 36. Qd4 {[%emt 0:00:56]} Kg8 {[%emt 0:00:40]} 37. Qf4 {[%emt 0:01:17]} Kg7 {[%emt 0:00:29]} 38. Rf1 {[%emt 0:01:21]} Rb7 {[%emt 0:01:30]} 39. g4 {[%emt 0:02:34]} Qxh4 {[%emt 0:01:08]} 40. Rg5 {[%emt 0:00:16]} hxg4 {[%emt 0:00:35]} 41. Rxg4 {[%emt 0:00:30]} Qh6 {[%emt 0:00:47]} 42. Qe5+ {[%emt 0:03:29]} Kg8 {[%emt 0:00:04]} 43. Bd3 {[%emt 0:00:18]} b3 {[%emt 0:03:11]} 44. a3 {[%emt 0:00:31]} f5 {[%emt 0:00:49]} 45. Rg3 {[%emt 0:01:18]} Kf7 {[%emt 0:00:15]} 46. Bc4 {[%emt 0:01:06]} Qh5 {[%emt 0:01:19]} 47. Rfg1 {[%emt 0:01:53]} Bd7 {[%emt 0:00:58]} 48. Rg5 {[%emt 0:00:31]} Qh7 {[%emt 0:00:21]} 49. Be2 {[%emt 0:08:01]} Qh8 {[%emt 0:00:40]} 50. Rxf5+ {[%emt 0:01:45]} exf5 {[%emt 0:00:17]} 51. Bc4+ {[%emt 0:00:06]} Be6 {[%emt 0:00:33]} 52. Bxe6+ {[%emt 0:00:07]} Rxe6 {[%emt 0:00:05]} 53. Qxh8 {[%emt 0:00:07]} Rb5 {[%emt 0:00:23]} 54. d7 {[%emt 0:00:39]} Rbe5 {[%emt 0:00:02]} 55. d8=N+ {[%emt 0:00:23]} 1-0

[Event "Eurasia Open Cup 2018"]
[Site "Jekaterienburg"]
[Date "2018.08.08"]
[Round "7"]
[White "Badmatsyrenov, Oleg"]
[Black "Sorokin, Aleksey"]
[Result "1/2-1/2"]
[ECO "B19"]
[WhiteElo "2454"]
[BlackElo "2519"]
[Annotator "RC"]
[PlyCount "137"]
[EventDate "2018.08.01"]
[EventType "swiss"]
[EventCountry "RUS"]
[SourceTitle "playchess.com"]
[Source "ChessBase"]
[SourceQuality "1"]
[TimeControl "5400+30"]

1. e4 {[%emt 0:00:00]} c6 {[%emt 0:00:00]} 2. d4 {[%emt 0:00:38]} d5 {[%emt 0:00:00]} 3. Nc3 {[%emt 0:00:36]} dxe4 {[%emt 0:00:17]} 4. Nxe4 {[%emt 0:00:06]} Bf5 {[%emt 0:02:03]} 5. Ng3 {[%emt 0:00:34]} Bg6 {[%emt 0:00:10]} 6. h4 {[%emt 0:00:57]} h6 {[%emt 0:00:12]} 7. Nf3 {[%emt 0:00:11]} Nd7 {[%emt 0:00:07]} 8. h5 {[%emt 0:00:05]} Bh7 {[%emt 0:00:05]} 9. Bd3 {[%emt 0:00:03]} Bxd3 {[%emt 0:00:25]} 10. Qxd3 {[%emt 0:00:02]} e6 {[%emt 0:02:27]} 11. Bd2 {[%emt 0:01:04]} Ngf6 {[%emt 0:04:05]} 12. O-O-O {[%emt 0:00:07]} Be7 {[%emt 0:01:37]} 13. Qe2 {[%emt 0:04:59]} c5 {[%emt 0:03:34]} 14. dxc5 {[%emt 0:15:09]} Qc7 {[%emt 0:00:49]} 15. Rh4 {[%emt 0:18:30]} Bxc5 {[%emt 0:03:27]} 16. Ne4 {[%emt 0:12:18]} Nxe4 {[%emt 0:13:16]} 17. Rxe4 {[%emt 0:00:03]} Nf6 {[%emt 0:03:30]} 18. Rc4 {[%emt 0:12:50]} b5 {[%emt 0:01:57]} 19. Rc3 {[%emt 0:07:05]} Qb6 {[%emt 0:02:11]} 20. Rb3 {[%emt 0:04:13]} a6 {[%emt 0:01:36]} 21. Ne5 {[%emt 0:06:45]} Rd8 {[%emt 0:05:14]} 22. Rg3 {[%emt 0:05:55]} Rg8 {[%emt 0:09:46]} 23. Rf3 {[%emt 0:01:06]} Rd5 {[%emt 0:05:50]} 24. Bc3 {[%emt 0:01:42]} b4 {[%emt 0:01:25]} 25. Rxd5 {[%emt 0:02:34]} Nxd5 {[%emt 0:00:39]} 26. Bd2 {[%emt 0:00:17]} f6 {[%emt 0:00:55]} 27. Nd3 {[%emt 0:01:24]} Kd7 {[%emt 0:04:15]} 28. Nxc5+ {[%emt 0:02:52]} Qxc5 {[%emt 0:00:04]} 29. Qxa6 {[%emt 0:00:08]} Rc8 {[%emt 0:00:19]} 30. Qd3 {[%emt 0:00:41]} Rc7 {[%emt 0:00:46]} 31. Kd1 {[%emt 0:01:45]} Qc6 {[%emt 0:00:37]} 32. Kc1 {[%emt 0:00:21]} Kc8 {[%emt 0:00:14]} 33. Kb1 {[%emt 0:00:00]} Rd7 {[%emt 0:01:37]} 34. Qe2 {[%emt 0:00:26]} Rc7 {[%emt 0:01:24]} 35. Be1 {[%emt 0:00:00]} e5 {[%emt 0:00:18]} 36. g3 {[%emt 0:00:35]} Ra7 {[%emt 0:01:59]} 37. a3 {[%emt 0:01:51]} bxa3 {[%emt 0:00:06]} 38. Rxa3 {[%emt 0:00:06]} Rxa3 {[%emt 0:01:05]} 39. bxa3 {[%emt 0:00:00]} Kb7 {[%emt 0:01:03]} 40. Bd2 {[%emt 0:01:06]} e4 {[%emt 0:00:24]} 41. Kb2 {[%emt 0:00:48]} Qb6+ {[%emt 0:00:52]} 42. Ka1 {[%emt 0:00:22]} f5 {[%emt 0:01:02]} 43. Qc4 {[%emt 0:00:17]} Qc6 {[%emt 0:00:00]} 44. Qb3+ {[%emt 0:00:35]} Ka6 {[%emt 0:00:59]} 45. Ka2 {[%emt 0:00:31]} Qc5 {[%emt 0:04:39]} 46. Be3 {[%emt 0:00:41]} Nxe3 {[%emt 0:00:47]} 47. fxe3 {[%emt 0:00:04]} Qc7 {[%emt 0:00:03]} 48. Qa4+ {[%emt 0:00:36]} Kb7 {[%emt 0:01:15]} 49. Qb4+ {[%emt 0:00:27]} Ka8 {[%emt 0:01:13]} 50. Qa4+ {[%emt 0:00:37]} Kb7 {[%emt 0:00:00]} 51. Qb5+ {[%emt 0:00:12]} Ka7 {[%emt 0:00:35]} 52. Kb2 {[%emt 0:00:56]} Qxg3 {[%emt 0:00:49]} 53. Qc5+ {[%emt 0:00:41]} Kb7 {[%emt 0:00:41]} 54. a4 {[%emt 0:00:08]} g5 {[%emt 0:01:50]} 55. Qd5+ {[%emt 0:00:43]} Ka7 {[%emt 0:00:47]} 56. Qc5+ {[%emt 0:00:23]} Ka6 {[%emt 0:00:29]} 57. Qc6+ {[%emt 0:00:12]} Ka7 {[%emt 0:00:00]} 58. Qxh6 {[%emt 0:00:43]} Qe5+ {[%emt 0:00:56]} 59. c3 {[%emt 0:00:41]} f4 {[%emt 0:00:29]} 60. Qh7+ {[%emt 0:00:08]} Kb6 {[%emt 0:00:50]} 61. h6 {[%emt 0:00:36]} fxe3 {[%emt 0:00:40]} 62. Qg7 {[%emt 0:00:12]} Qxg7 {[%emt 0:00:15]} 63. hxg7 {[%emt 0:00:04]} e2 {[%emt 0:00:07]} 64. g8=Q {[%emt 0:00:05]} e1=Q {[%emt 0:00:13]} 65. Qxg5 {[%emt 0:00:53]} e3 {[%emt 0:01:44]} 66. Qb5+ {[%emt 0:00:11]} Ka7 {[%emt 0:00:29]} 67. Qd7+ {[%emt 0:00:32]} Ka6 {[%emt 0:00:36]} 68. Qd3+ {[%emt 0:00:53]} Ka7 {[%emt 0:00:19]} 69. Qd7+ {[%emt 0:00:23]} 1/2-1/2

[Event "Eurasia Open Cup 2018"]
[Site "Jekaterienburg"]
[Date "2018.08.08"]
[Round "7"]
[White "Shinkevich, Vitaly"]
[Black "Kolomensky, Vladimir"]
[Result "1/2-1/2"]
[ECO "A18"]
[WhiteElo "2437"]
[BlackElo "2104"]
[Annotator "NA"]
[PlyCount "81"]
[EventDate "2018.08.01"]
[EventType "swiss"]
[EventCountry "RUS"]
[SourceTitle "playchess.com"]
[Source "ChessBase"]
[SourceQuality "1"]
[TimeControl "5400+30"]

1. c4 {[%emt 0:00:00]} Nf6 {[%emt 0:00:00]} 2. Nc3 {[%emt 0:00:00]} e6 {[%emt 0:00:00]} 3. e4 {[%emt 0:00:00]} d5 {[%emt 0:00:35]} 4. e5 {[%emt 0:00:00]} d4 {[%emt 0:00:00]} 5. exf6 {[%emt 0:00:00]} dxc3 {[%emt 0:00:25]} 6. bxc3 {[%emt 0:00:00]} Qxf6 {[%emt 0:00:08]} 7. Nf3 {[%emt 0:00:02]} c5 {[%emt 0:04:09]} 8. Bd3 {[%emt 0:00:25]} Bd7 {[%emt 0:02:53]} 9. Be4 {[%emt 0:03:20]} Bc6 {[%emt 0:00:00]} 10. Qc2 {[%emt 0:01:07]} Bxe4 {[%emt 0:05:30]} 11. Qxe4 {[%emt 0:01:27]} Nc6 {[%emt 0:00:01]} 12. O-O {[%emt 0:05:53]} Qg6 {[%emt 0:10:42]} 13. Qf4 {[%emt 0:09:30]} O-O-O {[%emt 0:21:24]} 14. d4 {[%emt 0:02:41]} Bd6 {[%emt 0:00:35]} 15. Qe3 $11 {[%emt 0:01:21]} e5 {[%emt 0:37:22]} 16. d5 {[%emt 0:14:05]} Na5 {[%emt 0:00:08]} 17. Nd2 {[%emt 0:01:12]} b6 {[%emt 0:01:32]} 18. Ne4 {[%emt 0:10:03]} h6 {[%emt 0:06:46]} 19. f4 {[%emt 0:03:09]} exf4 {[%emt 0:01:34]} 20. Qh3+ {[%emt 0:00:26]} Kb7 {[%emt 0:00:52]} 21. Nxd6+ {[%emt 0:00:41]} Qxd6 {[%emt 0:00:58]} 22. Rxf4 {[%emt 0:07:24]} f6 {[%emt 0:00:24]} 23. Rg4 {[%emt 0:12:22]} Qd7 {[%emt 0:00:26]} 24. Qf3 {[%emt 0:02:09]} g5 {[%emt 0:00:23]} 25. Re4 {[%emt 0:00:57]} f5 {[%emt 0:01:20]} 26. Re6 {[%emt 0:07:00]} Rde8 {[%emt 0:01:37]} 27. h4 {[%emt 0:02:10]} f4 {[%emt 0:00:01]} 28. Qe4 {[%emt 0:10:14]} Rxe6 {[%emt 0:01:35]} 29. dxe6+ {[%emt 0:00:17]} Qc6 {[%emt 0:00:01]} 30. Qg6 {[%emt 0:00:16]} Re8 {[%emt 0:00:02]} 31. Qxh6 {[%emt 0:00:55]} gxh4 {[%emt 0:01:40]} 32. Bxf4 {[%emt 0:02:56]} Rxe6 {[%emt 0:00:17]} 33. Qxh4 {[%emt 0:01:06]} Re2 {[%emt 0:00:50]} 34. Qg4 {[%emt 0:00:55]} Qe4 {[%emt 0:00:20]} 35. Rd1 {[%emt 0:01:39]} Nxc4 {[%emt 0:00:21]} 36. a4 {[%emt 0:01:26]} Ne5 {[%emt 0:00:59]} 37. Qg7+ {[%emt 0:00:03]} Ka6 {[%emt 0:00:00]} 38. Bxe5 {[%emt 0:01:08]} Re1+ {[%emt 0:01:13]} 39. Rxe1 {[%emt 0:00:09]} Qxe1+ {[%emt 0:00:00]} 40. Kh2 {[%emt 0:00:00]} Qh4+ {[%emt 0:00:00]} 41. Kg1 {[%emt 0:00:16]} 1/2-1/2

[Event "Eurasia Open Cup 2018"]
[Site "Jekaterienburg"]
[Date "2018.08.08"]
[Round "7"]
[White "Drygalov, Sergey"]
[Black "Maletina, Tatiana"]
[Result "1-0"]
[ECO "D12"]
[WhiteElo "2433"]
[BlackElo "2231"]
[Annotator "NA"]
[PlyCount "109"]
[EventDate "2018.08.01"]
[EventType "swiss"]
[EventCountry "RUS"]
[SourceTitle "playchess.com"]
[Source "ChessBase"]
[SourceQuality "1"]
[TimeControl "5400+30"]

1. d4 {[%emt 0:00:00]} d5 {[%emt 0:00:00]} 2. c4 {[%emt 0:00:00]} c6 {[%emt 0:00:00]} 3. Nf3 {[%emt 0:00:00]} Nf6 {[%emt 0:00:00]} 4. e3 {[%emt 0:00:00]} Bf5 {[%emt 0:00:10]} 5. Nc3 {[%emt 0:00:00]} e6 {[%emt 0:00:35]} 6. Nh4 {[%emt 0:00:27]} Bg6 {[%emt 0:00:19]} 7. Nxg6 {[%emt 0:00:58]} hxg6 {[%emt 0:00:00]} 8. g3 {[%emt 0:00:04] D12: Slav Defence: 3 Nf3 Nf6 4 e3 Bf5} (8. h3 Nbd7 9. Bd3 Bd6 10. O-O Qe7 11. e4 dxe4 12. Bxe4 O-O 13. Bg5 Qd8 14. Re1 Qc7 15. Qf3 Bb4 {1-0 (38) Kramnik,V (2808)-Giri,A (2771) Leuven 2017}) 8... Nbd7 {[%emt 0:00:14]} 9. Qe2 {[%emt 0:00:07]} Bb4 {[%emt 0:01:11]} 10. Bg2 {[%emt 0:05:12]} Nb6 {[%emt 0:04:18]} 11. c5 {[%emt 0:05:10]} Nbd7 {[%emt 0:02:51]} 12. O-O {[%emt 1:23:32]} Kf8 $146 {[%emt 1:25:52]} ({Predecessor:} 12... O-O 13. Bd2 e5 14. a3 exd4 15. exd4 Re8 {½-½ (32) Shariyazdanov,A (2562)-Tukmakov,V (2566) Biel 2002}) 13. Nd1 {[%emt 0:00:30]} e5 {[%emt 0:00:30]} 14. a3 {[%emt 0:00:30]} Ba5 {[%emt 0:00:30]} 15. b4 {[%emt 0:00:30]} Bc7 {[%emt 0:00:30]} 16. b5 {[%emt 0:00:30]} Qc8 {[%emt 0:00:30]} 17. f4 {[%emt 0:00:30]} e4 {[%emt 0:00:30]} 18. Bd2 {[%emt 0:00:00]} Ng8 {[%emt 0:00:00]} 19. Nf2 {[%emt 0:00:00]} Ne7 $14 {[%emt 0:00:00]} 20. Ng4 {[%emt 0:00:00]} f6 {[%emt 0:00:00]} 21. Rab1 {[%emt 0:00:00]} Kf7 {[%emt 0:00:00]} 22. Rb2 {[%emt 0:00:00]} Nf8 {[%emt 0:00:00]} 23. h4 {[%emt 0:00:00]} Ne6 {[%emt 0:00:00]} 24. Bh3 {[%emt 0:00:00]} Nf5 {[%emt 0:00:00]} 25. Qf2 {[%emt 0:00:00]} Ke7 {[%emt 0:00:00]} 26. Nh2 {[%emt 0:00:00]} Qd7 {[%emt 0:00:00]} 27. Rfb1 {[%emt 0:00:00]} b6 {[%emt 0:00:00]} 28. cxb6 {[%emt 0:00:00]} Bxb6 {[%emt 0:00:00]} 29. bxc6 {[%emt 0:00:00]} Qxc6 {[%emt 0:00:00]} 30. Rc1 {[%emt 0:00:00]} Qa4 {[%emt 0:00:00]} 31. Nf1 {[%emt 0:00:00]} Kf7 {[%emt 0:00:00]} 32. Bxf5 {[%emt 0:00:00]} gxf5 {[%emt 0:00:00]} 33. Bb4 {[%emt 0:00:00]} Rac8 {[%emt 0:00:00]} 34. Rbc2 {[%emt 0:00:00]} Rxc2 {[%emt 0:00:00]} 35. Qxc2 {[%emt 0:00:00]} Qxc2 {[%emt 0:00:00]} 36. Rxc2 {[%emt 0:00:00]} g5 {[%emt 0:00:00]} 37. Rh2 {[%emt 0:00:19]} Kg6 {[%emt 0:00:00]} 38. a4 {[%emt 0:03:34]} Rb8 {[%emt 0:00:00]} 39. Be1 {[%emt 0:01:15]} Bc7 {[%emt 0:00:25]} 40. Rc2 {[%emt 0:01:59]} Rb1 {[%emt 0:03:42]} 41. Kf2 {[%emt 0:00:14]} gxf4 {[%emt 0:03:15]} 42. gxf4 {[%emt 0:00:16]} Bxf4 {[%emt 0:00:17]} 43. Rc6 {[%emt 0:01:55]} Bxe3+ {[%emt 0:01:16]} 44. Nxe3 {[%emt 0:00:57]} Nxd4 {[%emt 0:00:03]} 45. Ra6 {[%emt 0:01:17]} f4 {[%emt 0:03:52]} 46. Nxd5 {[%emt 0:00:13]} e3+ {[%emt 0:00:04]} 47. Kf1 {[%emt 0:00:38]} e2+ {[%emt 0:01:13]} 48. Kf2 {[%emt 0:00:15]} f3 {[%emt 0:00:03]} 49. Ne3 {[%emt 0:01:31]} Rd1 {[%emt 0:01:24]} 50. Rd6 {[%emt 0:01:11]} Rd3 {[%emt 0:00:18]} 51. Nc2 {[%emt 0:00:47]} Rd1 {[%emt 0:01:02]} 52. Rxd4 {[%emt 0:00:13]} Rc1 {[%emt 0:00:05]} 53. Rc4 {[%emt 0:00:08]} Kf5 {[%emt 0:00:08]} 54. Kxf3 {[%emt 0:00:05]} Ke5 {[%emt 0:00:29]} 55. Kxe2 {[%emt 0:00:07]} 1-0